Cogmind - Beta 17.1 @@@ ROGUE MODE // 2026.09.18 @ 23:17:22 Player: obl-vn Result: Self-destructed Performance ------------- Evolutions (3) 1500 Regions Visited (8) 1600 Robots Destroyed (69) 345 Value Destroyed (3733) 3733 Prototype IDs (26) 520 Alien Tech Used (0) 0 Bonus (1930) 1930 TOTAL SCORE: 9628 Bonus ------- High Alert Combat Kills 537 Follower Combat Kills 193 Entered Garrisons 400 Used RIF Installer 500 Aligned with FarCom 300 Cogmind --------- Core Integrity 474/700 Matter 146/300 Energy 150/150 System Corruption 0% Temperature Cool (0) Movement Flying (32) Location -7/Garrison Parts ------- > --- POWER (1) -------- Micro Nuclear Core > --- PROPULSION (3) --- Cooled VTOL Module Cooled VTOL Module > --- UTILITY (7) ------ Core Analyzer Relay Coupler [NC] (28) Relay Coupler [Grunt] (27) Relay Coupler [Grunt] (28) Relay Coupler [Sentry] (20) Relay Coupler [Sentry] (22) > --- WEAPON (2) ------- Longsword +1 > --- INVENTORY (5) ---- Relay Coupler [NC] (26) Relay Coupler [Grunt] (28) Rocket Launcher Peak State ------------ > --- POWER ------------ Micro Nuclear Core > --- PROPULSION ------- Cooled VTOL Module Cooled VTOL Module Cooled VTOL Module > --- UTILITY ---------- Core Analyzer Relay Coupler [NC] Relay Coupler [Grunt] Relay Coupler [Grunt] Relay Coupler [Sentry] Relay Coupler [Sentry] Relay Coupler [Hunter] > --- WEAPON ----------- Datajack Longsword +1 > --- INVENTORY -------- Flight Unit Relay Coupler [NC] Relay Coupler [Grunt] Heavy Ion Cannon Rocket Launcher [Rating: 53] Favorites ----------- Power Ion Engine Engine Ion Engine Power Core Micro Nuclear Core Propulsion Light Treads Treads Light Treads Flight Unit Cooled VTOL Module Utility Huge Storage Unit Device Heat Sink Storage Huge Storage Unit Processor Core Analyzer Hackware Relay Coupler [Sentry] Protection Improved Medium Armor Plating Weapon Assault Rifle Energy Gun Beamcaster Energy Cannon Beam Cannon Ballistic Gun Assault Rifle Ballistic Cannon Advanced Assault Cannon Launcher Rocket Launcher Slashing Weapon Longsword +1 Special Melee Weapon Datajack Build | -11 -10 -10 -10 -9 -8 -8 -7 -7 ------- Run | Yrd Mat Min Exi Min Mat Gar Fac Gar Slots Evolved 6 | . . . . . 4 . 2 . Power . | . . . . . . . . . Propulsion 1 | . . . . . 1 . . . Utility 5 | . . . . . 3 . 2 . Weapon . | . . . . . . . . . Parts Attached 62 | 6 6 . . 2 12 21 11 4 Power 6 | 1 1 . . . 1 2 1 . Engine 5 | 1 1 . . . 1 2 . . Core 1 | . . . . . . . 1 . Reactor . | . . . . . . . . . Propulsion 20 | 2 . . . . 3 12 3 . Treads 14 | 2 . . . . 3 9 . . Leg . | . . . . . . . . . Wheel . | . . . . . . . . . Hover . | . . . . . . . . . Flight 6 | . . . . . . 3 3 . Utility 23 | 1 3 . . 2 5 4 6 2 Device 7 | . 1 . . 2 2 2 . . Storage 3 | 1 2 . . . . . . . Processor 3 | . . . . . 3 . . . Hackware 8 | . . . . . . . 6 2 Protection 2 | . . . . . . 2 . . Artifact . | . . . . . . . . . Weapon 13 | 2 2 . . . 3 3 1 2 Energy Gun 1 | . . . . . 1 . . . Energy Cannon 1 | . 1 . . . . . . . Ballistic Gun 3 | 2 . . . . 1 . . . Ballistic Cannon 2 | . . . . . . 2 . . Launcher 3 | . 1 . . . . 1 . 1 Special Weapon . | . . . . . . . . . Impact Weapon . | . . . . . . . . . Slashing Weapon 1 | . . . . . 1 . . . Piercing Weapon . | . . . . . . . . . Special Melee Weapon 2 | . . . . . . . 1 1 Unidentified Prototypes 3 | . . . . 1 1 . 1 . Parts Lost 13 | . . . . . 2 6 . 5 Power 1 | . . . . . . 1 . . Propulsion 3 | . . . . . . 1 . 2 Utility 6 | . . . . . 2 3 . 1 Weapon 3 | . . . . . . 1 . 2 Highest Loss Streak 3 | . . . . . 1 2 . 3 To Critical Strikes . | . . . . . . . . . Average Backups 18 | 1 11 17 20 24 22 22 6 4 Power 3 | . 1 3 3 4 5 3 . . Propulsion 2 | . . 1 1 1 1 5 1 . Utility 4 | . . 1 2 4 4 7 3 2 Weapon 8 | . 8 12 13 14 11 6 1 1 Tool/Special . | . . . . . . . . . Unused Backups 32 | . 2 . . 6 6 7 9 2 Power 6 | . . . . 1 1 2 2 . Propulsion . | . . . . . . . . . Utility 13 | . . . . 1 1 5 4 2 Weapon 13 | . 2 . . 4 4 . 3 . Tool/Special . | . . . . . . . . . Average Slot Usage (%) 95 | . 92 100 100 100 94 95 90 94 Engine 10 | . 14 14 14 14 9 8 . . Treads 25 | . 28 28 28 28 27 24 4 . Flight 2 | . . . . . . 2 19 22 Device 11 | . 7 14 14 14 22 10 1 . Storage 10 | . 14 14 14 14 9 8 . . Processor 8 | . . . . . 9 19 8 7 Hackware 2 | . . . . . . . 34 44 Protection 1 | . . . . . . 5 1 . Energy Gun 1 | . . . . . 5 3 . . Energy Cannon 5 | . 8 14 14 14 3 . . . Ballistic Gun 9 | . 19 14 14 14 8 3 . . Ballistic Cannon 3 | . . . . . . 8 3 . Peak Build Rating 53 | 6 9 10 13 22 40 43 53 53 Average Rating 23 | 4 7 9 11 14 29 35 45 50 On Entrance 20 | . 6 9 10 13 15 40 37 52 Avg Prop Armor Cover (%) . | . . . . . . . . . Naked Turns . | . . . . . . . . . Heaviest Build 112 | 13 91 91 91 91 104 112 106 11 Greatest Support 60 | 40 40 40 40 40 60 60 60 21 Greatest Overweight (x) 2 | . 2 2 2 2 1 1 1 . Average Overweight (x) . | . . 2 2 2 1 . . . Largest Inventory Capacity 25 | 8 25 25 25 25 25 25 25 5 Average Capacity 21 | 6 16 25 25 25 25 23 6 5 Most Carried 25 | 2 17 19 22 25 25 25 25 5 Average Carried 18 | 1 11 17 20 24 22 22 6 4 Final Capacity 25 | 8 25 25 25 25 25 25 5 5 Final Carried 25 | 2 17 19 22 25 25 25 5 3 Class Distribution -------------------- 53% | Mutant 40% | Scavenger-Mutant 3% | Sprinter Dominant Class ---------------- Mutant | -10/Materials Mutant | -10/Mines Mutant | -10/Exiles Mutant | -9/Mines Mutant | -8/Materials Scavenger-Mutant | -8/Garrison Sprinter | -7/Factory Sprinter | -7/Garrison Resources | -11 -10 -10 -10 -9 -8 -8 -7 -7 ----------- Run | Yrd Mat Min Exi Min Mat Gar Fac Gar Matter Collected 2147 | 212 247 181 . 24 308 947 71 157 Remotely . | . . . . . . . . . Salvage Created 2438 | . 247 134 . 79 552 1355 71 . Parts 160 | . 21 7 . 4 45 72 11 . Haulers Intercepted 2 | . 1 . . . . . 1 . Recyclers Shooed . | . . . . . . . . . Parts Field Recycled . | . . . . . . . . . Retrieved Matter . | . . . . . . . . . Parts Self-Destructed . | . . . . . . . . . Prevented . | . . . . . . . . . Parts Restored . | . . . . . . . . . Kills | -11 -10 -10 -10 -9 -8 -8 -7 -7 ------- Run | Yrd Mat Min Exi Min Mat Gar Fac Gar Combat Hostiles Destroyed 65 | . 9 3 . 2 15 36 . . Guns 35 | . 7 1 . 1 15 11 . . Cannons 20 | . . 2 . 1 . 17 . . AOE 10 | . 2 . . . . 8 . . Classes Destroyed 10 | . 3 . . . 3 3 1 . Worker 1 | . . . . . 1 . . . Tunneler 1 | . . . . . . . 1 . Hauler 2 | . 1 . . . . . 1 . Swarmer 16 | . 6 . . . 7 3 . . Grunt 32 | . 3 3 . 2 3 21 . . Brawler 2 | . . . . . . 2 . . Sentry 9 | . . . . . 3 6 . . Specialist 2 | . . . . . 2 . . . Hunter 1 | . . . . . . 1 . . Programmer 3 | . . . . . . 3 . . Best Kill Streak 9 | . 5 2 . 2 7 9 1 . Combat Bots Only 9 | . 5 2 . 2 6 9 . . Max Kills in Single Turn 2 | . 2 1 . 1 1 2 1 . Gunslinging . | . . . . . . . . . Exploded 2 | . 2 . . . . 2 . . Melee . | . . . . . . . . . Uniques/NPCs Destroyed . | . . . . . . . . . Combat | -11 -10 -10 -10 -9 -8 -8 -7 -7 -------- Run | Yrd Mat Min Exi Min Mat Gar Fac Gar Hostile Shots Fired 317 | . 33 10 . 16 64 156 1 37 Missed 90 | . 9 4 . 4 12 48 1 12 Hits 227 | . 24 6 . 12 52 108 . 25 Projectile 227 | . 24 6 . 12 52 108 . 25 Critical Strikes 7 | . . . . . . 6 . 1 Damage Taken 2889 | . 223 78 . 168 494 1527 . 399 Core 509 | . 30 25 . 43 17 168 . 226 Absorbed by Shields 210 | . . . . . 118 58 . 34 Core Remaining (%) 75 | 100 . . . 60 . 66 . . Volleys Fired 191 | . 34 10 . 8 40 99 . . Largest 2 | . 2 2 . 2 2 2 . . Hottest 100 | . 80 80 . 80 100 100 . . Shots Fired 353 | . 67 20 . 16 78 172 . . Gun 223 | . 60 10 . 8 67 78 . . Cannon 116 | . 6 10 . 8 11 81 . . Launcher 14 | . 1 . . . . 13 . . Special . | . . . . . . . . . Kinetic 238 | . 60 10 . 8 38 122 . . Thermal 101 | . 6 10 . 8 40 37 . . Explosive 14 | . 1 . . . . 13 . . Electromagnetic . | . . . . . . . . . Robot Hit Streak 12 | . 5 7 . 7 9 12 . . Robot Miss Streak 4 | . 4 2 . 2 4 4 . . Penetration Max . | . . . . . . . . . Secondary Targets 2 | . 1 . . . 1 . . . Max Gunslinging Chain 1 | . 1 . . . 1 . . . Shots Hit Robots 212 | . 37 15 . 12 44 92 4 8 Core Hits 119 | . 20 6 . 4 24 63 2 . Critical Kills 1 | . . 1 . . . . . . Critical Parts Destroyed . | . . . . . . . . . Critical Strikes 8 | . . 1 . . . 7 . . Burn 2 | . . . . . . 2 . . Destroy 1 | . . 1 . . . . . . Blast 5 | . . . . . . 5 . . Melee Attacks 60 | . . . . . 5 32 9 14 Impact . | . . . . . . . . . Slashing 52 | . . . . . 5 32 6 9 Piercing . | . . . . . . . . . Sneak Attacks 4 | . . . . . . . 3 1 Combat Hostiles . | . . . . . . . . . Follow-up Attacks . | . . . . . . . . . Damage Inflicted 5020 | . 513 266 . 193 898 2705 221 224 Guns 2303 | . 338 93 . 81 828 963 . . Cannons 1496 | . 71 159 . 109 70 1087 . . Explosions 746 | . 99 . . . . 647 . . Melee 445 | . . . . . . . 221 224 Ramming 30 | . 5 14 . 3 . 8 . . Kinetic 2437 | . 338 93 . 81 424 1501 . . Thermal 1362 | . 71 159 . 109 474 549 . . Explosive 746 | . 99 . . . . 647 . . Electromagnetic . | . . . . . . . . . Impact . | . . . . . . . . . Slashing 445 | . . . . . . . 221 224 Piercing . | . . . . . . . . . Highest Corruption 3 | . . . . . . 3 . . Average Corruption 2 | . . . . . . 2 . . Corruption Purged . | . . . . . . . . . Corruption Blocked . | . . . . . . . . . Effects 26 | . . . . . . 26 . . Message Errors 6 | . . . . . . 6 . . Matter Fused 4 | . . . . . . 4 . . Heat Flow Errors 2 | . . . . . . 2 . . Energy Discharges 8 | . . . . . . 8 . . Data Loss (minor) 3 | . . . . . . 3 . . Data Loss (major) 2 | . . . . . . 2 . . Misfires 1 | . . . . . . 1 . . Overload Shots . | . . . . . . . . . Overflow Damage 20 | . . . . . 7 13 . . Projectiles 20 | . . . . . 7 13 . . Explosions . | . . . . . . . . . Melee . | . . . . . . . . . Knockbacks 13 | . 1 . . . . 12 . . Impact 1 | . 1 . . . . . . . Kinetic 12 | . . . . . . 12 . . Secondary . | . . . . . . . . . Self-Inflicted Damage 21 | . . . . . . 21 . . Shots 1 | . . . . . . 1 . . Rammed 4 | . 1 1 . 1 . 1 . . Targets Rammed 4 | . 1 1 . 1 . 1 . . Kicked . | . . . . . . . . . Crushed . | . . . . . . . . . Highest Temperature 175 | . 9 . . 6 70 175 . 18 Average Temperature 20 | . 6 . . 6 18 30 . 18 Received Heat Transfer 1084 | . 57 45 . 99 129 682 . 72 Siege Activations . | . . . . . . . . . Martial Activations . | . . . . . . . . . Shielding Activations . | . . . . . . . . . Robots Disrupted . | . . . . . . . . . Combat Hostiles . | . . . . . . . . . Robots Corrupted . | . . . . . . . . . Combat Hostiles . | . . . . . . . . . Parts Fried . | . . . . . . . . . Impact Corruptions . | . . . . . . . . . Robots Melted . | . . . . . . . . . Combat Hostiles . | . . . . . . . . . Parts Melted 5 | . . 2 . . 1 2 . . Heat Transferred 2627 | . 148 333 . 222 851 1073 . . Parts Sabotaged . | . . . . . . . . . Parts Stolen . | . . . . . . . . . Parts Stripped . | . . . . . . . . . Power Chain Reactions . | . . . . . . . . . Alert | -11 -10 -10 -10 -9 -8 -8 -7 -7 ------- Run | Yrd Mat Min Exi Min Mat Gar Fac Gar Maximum Alert Level 5 | . . . . . 1 5 3 2 Low Security (%) 54 | 100 100 100 . 100 94 4 . . Level 1 4 | . . . . . 5 8 . . Level 2 9 | . . . . . . 17 . 100 Level 3 15 | . . . . . . 29 100 . Level 4 13 | . . . . . . 33 . . Level 5 2 | . . . . . . 7 . . High Security . | . . . . . . . . . Max Security . | . . . . . . . . . Peak Influence 1715 | . 136 184 . 40 244 1715 900 673 Initial 900 | . . . . . . 153 900 602 Average 444 | . 31 69 . 3 70 921 870 635 Influence Increases 2860 | . 282 259 . 50 435 1662 61 111 Destroy 0b10 Robot/C 1440 | . 180 120 . 40 300 760 . 40 Destroy 0b10 Robot/NC 20 | . 5 . . . 5 . 10 . Destroy Leader 174 | . 42 30 . 10 60 30 2 . Allied During Kill 36 | . . 12 . . . 18 . 6 Successful Hack 68 | . 34 . . . 4 30 . . Disable Machine 105 | . . 60 . . 45 . . . Anti-Garrison Action 750 | . . . . . . 700 . 50 Destroy Structure 132 | . 6 22 . . 6 94 4 . Partial Spotted 15 | . 15 . . . . . . . Lose Combat Pursuer 120 | . . 15 . . 15 30 45 15 Influence Decreases 2257 | . 282 250 9 50 199 183 915 369 Entered New Map 1166 | . . . 9 . . 83 815 259 Time Decay 843 | . 282 232 . 50 179 . 100 . Lost Part 130 | . . . . . 20 60 . 50 Lost Ally 118 | . . 18 . . . 40 . 60 Squads Dispatched 8 | . 1 . . 1 5 . 1 . Investigation 1 | . . . . 1 . . . . Extermination 1 | . . . . . . . 1 . Reinforcement 3 | . 1 . . . 2 . . . Assault . | . . . . . . . . . Garrison 3 | . . . . . 3 . . . Intercept . | . . . . . . . . . Searches Triggered . | . . . . . . . . . Construction Impeded . | . . . . . . . . . Haulers Reinforced . | . . . . . . . . . Active Scanning Responses . | . . . . . . . . . Cargo Convoy Interrupts . | . . . . . . . . . Stealth | -11 -10 -10 -10 -9 -8 -8 -7 -7 --------- Run | Yrd Mat Min Exi Min Mat Gar Fac Gar Distress Signals 5 | . 2 . . . 2 . 1 . Communications Jammed . | . . . . . . . . . Distress Signals . | . . . . . . . . . Times Spotted 96 | . 19 5 . 2 24 33 4 9 Peak Tracking Total 6 | . 6 2 . 2 4 5 4 3 Tactical Retreats 6 | . . 1 . . 1 1 2 1 Traps | -11 -10 -10 -10 -9 -8 -8 -7 -7 ------- Run | Yrd Mat Min Exi Min Mat Gar Fac Gar Traps Triggered 13 | . . . . . . 11 . 2 Indirectly . | . . . . . . . . . Trap Hack Attempts . | . . . . . . . . . Triggered . | . . . . . . . . . Disarmed . | . . . . . . . . . Reprogrammed . | . . . . . . . . . Reused . | . . . . . . . . . Traps Extracted . | . . . . . . . . . Installed . | . . . . . . . . . Triggered . | . . . . . . . . . Machines | -11 -10 -10 -10 -9 -8 -8 -7 -7 ---------- Run | Yrd Mat Min Exi Min Mat Gar Fac Gar Machines Disabled 13 | . . 4 . . 3 5 . 1 Max in Single Turn 1 | . . . . . 1 1 . 1 Garrison Relay 6 | . . . . . . 5 . 1 Machines Repaired . | . . . . . . . . . Machines Dismantled . | . . . . . . . . . Machines Sabotaged . | . . . . . . . . . Overloaded Fab Kills . | . . . . . . . . . Hacking | -11 -10 -10 -10 -9 -8 -8 -7 -7 --------- Run | Yrd Mat Min Exi Min Mat Gar Fac Gar Machines Accessed 18 | . 6 1 2 2 2 3 2 . Terminals 12 | . 6 1 . . 1 3 1 . Fabricators . | . . . . . . . . . Repair Stations . | . . . . . . . . . Recycling Units . | . . . . . . . . . Scanalyzers . | . . . . . . . . . Garrison Access 2 | . . . . . 1 . 1 . Total Hacks 42 | . 20 1 2 2 3 8 6 . Successful 24 | . 12 . 2 2 3 3 2 . Failed 17 | . 7 1 . . . 5 4 . Catastrophic 3 | . . 1 . . . 2 . . Database Lockouts 1 | . 1 . . . . . . . Manual 25 | . 18 1 1 . 1 2 2 . Terminals 35 | . 20 1 . . 2 8 4 . Fabricators . | . . . . . . . . . Repair Stations . | . . . . . . . . . Recycling Units . | . . . . . . . . . Scanalyzers . | . . . . . . . . . Garrison Access 3 | . . . . . 1 . 2 . Terminal Hacks 11 | . 4 . 2 2 1 2 . . Record 1 | . . . 1 . . . . . Robot Analysis 2 | . 2 . . . . . . . Open Door 3 | . . . . 2 . 1 . . Emergency Access Points 1 | . . . . . 1 . . . Locate Traps 2 | . 2 . . . . . . . Security Stations 1 | . . . . . . 1 . . Proto ID Catalog 1 | . . . 1 . . . . . Fabricator Hacks . | . . . . . . . . . Repair Station Hacks . | . . . . . . . . . Recycling Unit Hacks . | . . . . . . . . . Scanalyzer . | . . . . . . . . . Garrison Access Hacks 2 | . . . . . 1 . 1 . Unlock Access 2 | . . . . . 1 . 1 . Unauthorized Hacks 11 | . 8 . . . 1 1 1 . Terminals 11 | . 8 . . . 1 1 1 . Track 1 | . 1 . . . . . . . Botnet 2 | . 1 . . . . 1 . . Skim 8 | . 6 . . . 1 . 1 . Fabricators . | . . . . . . . . . Repair Stations . | . . . . . . . . . Recycling Units . | . . . . . . . . . Scanalyzers . | . . . . . . . . . Garrison Access . | . . . . . . . . . Data Cores Recovered . | . . . . . . . . . Used . | . . . . . . . . . Hacking Detections 12 | . 4 1 . . 2 3 2 . Full Trace Events 1 | . . . . . . 1 . . Feedback Events . | . . . . . . . . . Feedback Blocked . | . . . . . . . . . Robot Schematics Acquired . | . . . . . . . . . Robots Built . | . . . . . . . . . Authchips . | . . . . . . . . . Time . | . . . . . . . . . Total Robot Build Rating . | . . . . . . . . . Part Schematics Acquired . | . . . . . . . . . Parts Built . | . . . . . . . . . Authchips . | . . . . . . . . . Time . | . . . . . . . . . Total Part Build Rating . | . . . . . . . . . Part Studies Acquired . | . . . . . . . . . Parts Repaired . | . . . . . . . . . Time . | . . . . . . . . . Parts Recycled . | . . . . . . . . . Recycled Matter . | . . . . . . . . . Retrieved Matter . | . . . . . . . . . Retrieved Components . | . . . . . . . . . Parts Scanalyzed . | . . . . . . . . . Part Schematics Acquired . | . . . . . . . . . Parts Damaged . | . . . . . . . . . Bothacking | -11 -10 -10 -10 -9 -8 -8 -7 -7 ------------ Run | Yrd Mat Min Exi Min Mat Gar Fac Gar Used RIF Installer 1 | . . . . . . 1 . . Robots Hacked 3 | . . . . . . . 1 2 Non-combat . | . . . . . . . . . Combat 3 | . . . . . . . 1 2 Robot Hacks Applied 3 | . . . . . . . 1 2 formatsys_high 3 | . . . . . . . 1 2 Relay Couplers Released 29 | . . . . . . 24 . 5 Machine Destruction 25 | . . . . . . 20 . 5 Programmers 4 | . . . . . . 4 . . Attached 8 | . . . . . . . 6 2 Fabnet Peak Effective % . | . . . . . . . . . Robots Rewired 3 | . . . . . . 3 . . Allies Hacked 1 | . . . . . . 1 . . Hacks Repelled . | . . . . . . . . . Allies | -11 -10 -10 -10 -9 -8 -8 -7 -7 -------- Run | Yrd Mat Min Exi Min Mat Gar Fac Gar Total Allies 10 | . . 2 . . . 5 1 2 Largest Group 5 | . . 2 . . . 5 1 3 Highest-Rated Group 123 | . . 41 . . . 123 32 64 Highest-Rated Ally 32 | . . 31 . . . 31 32 32 Total Orders 7 | . . . . . . 3 . 4 STAY 3 | . . . . . . 1 . 2 FOLLOW 2 | . . . . . . . . 2 EXPLORE 1 | . . . . . . 1 . . RETURN 1 | . . . . . . 1 . . Ally Attacks 29 | . . 7 . . . 5 . 17 Total Damage 596 | . . 191 . . . 109 . 296 Kills 7 | . . 3 . . . 2 . 2 Allies Corrupted . | . . . . . . . . . Allies Melted . | . . . . . . . . . Intel | -11 -10 -10 -10 -9 -8 -8 -7 -7 ------- Run | Yrd Mat Min Exi Min Mat Gar Fac Gar Active Infowar (turns) . | . . . . . . . . . Robot Analysis Total 2 | . 2 . . . . . . . Derelict Logs Recovered 4 | . . 2 . 2 . . . . Drone Launches 2 | . . . . . . 2 . . Drone Recoveries 2 | . . . . . . 2 . . Exploration | -11 -10 -10 -10 -9 -8 -8 -7 -7 ------------- Run | Yrd Mat Min Exi Min Mat Gar Fac Gar Turns Passed 6490 | 83 1203 567 666 541 694 2351 217 168 Spaces Moved 2911 | 48 392 165 208 156 183 1041 468 250 Core 3 | 3 . . . . . . . . Treads 1886 | 45 392 165 208 156 183 726 11 . Legs . | . . . . . . . . . Wheels . | . . . . . . . . . Hover . | . . . . . . . . . Flight 1022 | . . . . . . 315 457 250 Fastest Speed 20 | 50 160 320 320 320 240 34 29 20 Average Speed 171 | 153 180 320 320 320 240 176 34 28 Slowest Speed 320 | 160 320 320 320 320 240 240 240 30 Overloaded Moves 5 | . . . . . . . . 5 Propulsion Burnouts . | . . . . . . . . . Robots Hopped 2 | . . . . . . . 2 . Potential Cave-ins . | . . . . . . . . . Cave-ins Triggered . | . . . . . . . . . Exploration Rate (%) 34 | 3 57 34 58 35 14 80 14 17 Regions Visited 8 Branch Regions 3 Pre-discovered Areas 4 | . 1 1 1 1 . . . . Known Exits Taken 4 | . 1 . . 1 1 . 1 . Unknown Exits Taken 3 | 1 . 1 1 . . . . . Scrap Searched . | . . . . . . . . . Spaces Dug 39 | . . . . . 5 30 4 . Terrain Destroyed 65 | . 5 . . . 5 51 4 . Melee 39 | . . . . . 5 30 4 . Projectile . | . . . . . . . . . AOE 26 | . 5 . . . . 21 . . Terrain Rammed . | . . . . . . . . . Walls Destroyed . | . . . . . . . . . Machines Disabled . | . . . . . . . . . Actions | -11 -10 -10 -10 -9 -8 -8 -7 -7 --------- Run | Yrd Mat Min Exi Min Mat Gar Fac Gar Total 4063 | 55 831 184 210 184 371 1377 517 334 Wait 561 | . 372 7 . . 105 35 5 37 Move 2899 | 47 391 164 207 155 182 1040 463 250 Hop 2 | . . . . . . . 2 . Pick Up 97 | 2 19 2 3 10 11 42 7 1 Fast Attach 41 | 6 3 . . 1 3 15 11 2 Attach 17 | . . . . . 4 7 3 3 Detach 2 | . . . . . 1 . . 1 Swap 34 | . 4 . . 1 8 18 1 2 Drop 94 | . 7 . . 8 12 49 16 2 Fire 191 | . 34 10 . 8 40 99 . . Melee 60 | . . . . . 5 32 9 14 Ram . | . . . . . . . . . Kick . | . . . . . . . . . Crush 4 | . 1 1 . 1 . 1 . . Escape Stasis 40 | . . . . . . 19 . 21 Rewire 21 | . . . . . . 20 . 1 Trap . | . . . . . . . . . Miscellaneous . | . . . . . . . . . Route ------- -11/Scrapyard -10/Materials (discovered 6 exits: *Mat x3 / *Min x2 / Sub) -10/Mines (discovered 3 exits: Mat x2 / *Exi) -10/Exiles -9/Mines -8/Materials (discovered 2 exits: Fac / Gar) -8/Garrison (discovered 3 exits: *Fac x3) -7/Factory (discovered 2 exits: [*Fac] / Gar) -7/Garrison History --------- Turn | Location | Event 19 | -11/Scrapyard | Discovered new exit (range 16) 84 | -11/Scrapyard | Entered Materials 323 | -10/Materials | Build established: Mutant 727 | -10/Materials | Discovered new exit (range 9) 831 | -10/Materials | Identified exit to Materials 831 | -10/Materials | Identified exit to Mines 905 | -10/Materials | Loaded intel: 19 trap records 963 | -10/Materials | Central database locked down 1066 | -10/Materials | Learned location of 2 exits from Subcaves 1142 | -10/Materials | Identified exit to Subcaves 1197 | -10/Materials | Loaded intel: 2 recycling unit locations 1260 | -10/Materials | Learned location of Mines (-10) 1287 | -10/Materials | Entered Mines 1467 | -10/Mines | Learned location of Storage (-9) 1642 | -10/Mines | Learned Materials stockpile data 1693 | -10/Mines | Learned Materials garrison access intel 1842 | -10/Mines | Deemed a non-threat by the Exiles lab entrance 1842 | -10/Mines | Discovered new exit (range 5) 1854 | -10/Mines | Entered Exiles 1934 | -10/Exiles | Met 8R-AWN 1989 | -10/Exiles | Met EX-HEX 2072 | -10/Exiles | Met EX-BIN 2110 | -10/Exiles | Aligned with FarCom system 2114 | -10/Exiles | Given EX-Vault access code 2187 | -10/Exiles | Opened EX-Vault 2206 | -10/Exiles | Found Trap Reconfigurator 2211 | -10/Exiles | Found Latent Energy Streamer 2221 | -10/Exiles | Found Longsword +1 2283 | -10/Exiles | Warned to stay clear of 0b10 Research branches 2382 | -10/Exiles | Met EX-DEC 2392 | -10/Exiles | Learned location of Zion (-6) 2488 | -10/Exiles | Discovered new exit (range 10) 2520 | -10/Exiles | Stole three prototypes: Trap Reconfigurator, Latent Energy Streamer, Longsword +1 2520 | -10/Exiles | Entered Mines 2521 | -9/Mines | Identified exit to Materials 2717 | -9/Mines | Met a Derelict shopkeep closing up shop 2973 | -9/Mines | Found the Drone Emporium 2979 | -9/Mines | Learned location of Recycling (-9) 2986 | -9/Mines | Found Prototype Device 2986 | -9/Mines | Identified Sensor Drone Bay 3061 | -9/Mines | Entered Materials 3061 | -8/Materials | Evolved 4 slots: Propulsion x1, Utility x3 3062 | -8/Materials | Identified exit to Factory 3064 | -8/Materials | Loaded intel: 1 garrison access location 3510 | -8/Materials | Garrison activated, responded to threat 3748 | -8/Materials | Identified exit to Garrison 3755 | -8/Materials | Entered Garrison 3777 | -8/Garrison | Build established: Scavenger-Mutant 3845 | -8/Garrison | Triggered checkpoint 3852 | -8/Garrison | Garrison Relay disabled 3937 | -8/Garrison | Triggered checkpoint 4046 | -8/Garrison | Triggered checkpoint 4112 | -8/Garrison | Destroyed 9 combat bots 4266 | -8/Garrison | Garrison Relay disabled 4337 | -8/Garrison | Triggered checkpoint 4345 | -8/Garrison | Triggered checkpoint 4365 | -8/Garrison | Triggered checkpoint 4461 | -8/Garrison | Rescued a captive Derelict 4461 | -8/Garrison | Rescued a captive Derelict 4650 | -8/Garrison | Triggered checkpoint 4711 | -8/Garrison | Discovered exit to Factory (range 15) 4941 | -8/Garrison | Triggered checkpoint 5021 | -8/Garrison | Learned Factory security intel 5077 | -8/Garrison | Triggered checkpoint 5146 | -8/Garrison | Garrison Relay disabled 5217 | -8/Garrison | Discovered exit to Factory (range 14) 5264 | -8/Garrison | Installed Relay Interface Framework 5381 | -8/Garrison | Triggered checkpoint 5553 | -8/Garrison | Discovered exit to Factory (range 15) 5641 | -8/Garrison | Triggered checkpoint 5692 | -8/Garrison | Garrison Relay disabled 5938 | -8/Garrison | Garrison Relay disabled 6106 | -8/Garrison | Entered Factory 6106 | -7/Factory | Evolved 2 slots: Utility x2 6108 | -7/Factory | FarCom data flow suspended 6277 | -7/Factory | Discovered new exit (range 15) 6314 | -7/Factory | Identified exit to Garrison 6323 | -7/Factory | Entered Garrison 6323 | -7/Garrison | Accompanied by 1 ally 6347 | -7/Garrison | Triggered checkpoint 6370 | -7/Garrison | Garrison Relay disabled 6397 | -7/Garrison | Triggered checkpoint 6451 | -7/Garrison | Triggered checkpoint 6491 | -7/Garrison | Self-destructed Last Messages --------------- 06428_ Field strength at 88. 06429_ Field strength at 82. 06430_ Field strength at 76. 06431_ Field strength at 70. 06432_ Field strength at 59. 06433_ Field strength at 53. 06433_ Datajack destroyed. 06434_ Field strength at 43. 06435_ Field strength at 37. 06436_ Field strength at 24. 06437_ Field strength at 4. 06438_ Stasis field depleted. 06451_ Beams of light sweep through the air. An alarm sounds. 06456_ Trooper 4a destroyed. 06461_ Guardian 4a destroyed. 06463_ Acquired 72 matter. 06487_ Cld. VTOL Module destroyed. 06489_ Flight Unit destroyed. 06489_ Relay Coupler [Hunter] destroyed. Map ----- +----------------------------------------------------+ | ??????????????# #????# #???????????????????? | | ??????????????# #????# #???????????????????? | | ??????????? ""???# ###???????????????????? | | ????????#"! !"#??# ############??????????? | | ????????#"! !"#??# ??????? | | ????????#"! !"#??# ??????? | | ????????#"! !"#??# #############?????????? | | ????????#"! !"#??#! #?????????????????????? | | ????????#"! !"#??# =#?????????????????????? | | ????????#"" ""#??# #?????????????????????? | | ????????#"""!!!!"""#??# #?????????????????????? | | ?????????""""""""""???# =#?????????????????????? | | ???????????######?????# #?????????????????????? | | ??????????????????????# #?????????????????????? | | ??????????????????????# ###???????????????????? | | ??????????????????????# #???????????????????? | | ??????????????????????# #???????????????????? | | ??????????????????????# #???????????????????? | | ??????????????????????# ###???????????????????? | | ??????????????????????# #?????????????????????? | | ??????????????????????# #?????????????????????? | | ??????????????????????# #?????????????????????? | | ??????????????????????# #?????????????????????? | | ????????????????#####?# #?????????????????????? | | ????????????????# #?# #?????????????????????? | | ????????######### ###@ #####?????????????????? | | ?????# # *% !x[%+ ??????????? | | ?????# / ! Yx + ??????????? | | ?????# # #######################?????????????? | | ????????# #???????????????????????????????????? | | ????????# #???????????????????????????????????? | | ???????? "??????????????????????????????????? | | ??????? "#?????????????????????????????????? | | ??????# "#?????????????????????????????????? | | ??????### #"#?????????????????????????????????? | | ????????# ###?????????????????????????????????? | | ????????####???????????????????????????????????? | | ???????????????????????????????????????????????? | | ???????????????????????????????????????????????? | | | | | | | | | | | | | | | | | | | | | | | +----------------------------------------------------+ Best States ------------- Heat Dissipation 72 Energy Generation 16 Energy Capacity 290 Matter Stores 300 Matter Capacity 300 Sight Range 16 Terrain Scan Density 10 Armor Coverage 225 Evasion (%) 64 Targeting Accuracy 8 Core Analysis 6 Armor Integrity Analysis 30 Recoil Reduction 3 Relay Coupler Types 4 Relay Coupler Value 144 Item Schematics ----------------- None Robot Schematics ------------------ None Fabricated ------------ Nothing Repaired ---------- Nothing Studied --------- None Alien Tech Used ----------------- None Achievements -------------- None Challenges ------------ None Game ------ Seed SixPoweredNeutralizer Manual? 0 Play Time 00:50:10 Cumulative 280.0 hours Start 2026.09.18 @ 22:28:56 End 2026.09.18 @ 23:17:22 Sessions 1 Manual Loads 0 Difficulty Rogue Special Mode None Game No. 188 Rogue 188 Adventurer 0 Explorer 0 Win Type - Total 6 Types 2/0/2/1/0/0/0/1/0/0 Lore% 63 Gallery% 75 Achievement% 59 Wizard Run 0 Options --------- Layout 2 ASCII 0 Keyboard 0 Movement Mouse Keybinds 0 Fullscreen 1 Font 32/Tamsyn Map View 50x44 Zoom Use 0% Tactical HUD 1 Map Filters NONE Filters NONE Steam 1 RUN: abcb22dd-a56e-4ac4-a7c1-68d15243b163